Cogmind - Beta 15 @@@ ROGUE MODE // 2025.07.08 @ 21:58:01 Player: HeartGrenade Result: Destroyed by Piercing Trap Performance ------------- Evolutions (0) 0 Regions Visited (2) 400 Robots Destroyed (17) 85 Value Destroyed (485) 485 Prototype IDs (4) 80 Alien Tech Used (0) 0 Bonus (0) 0 TOTAL SCORE: 1050 Bonus ------- None Cogmind --------- Core Integrity 0/250 Matter 292/300 Energy 166/170 System Corruption 2% Temperature Cool (2) Movement Treading (160) Location -10/Subcaves Parts ------- > --- POWER (1) -------- Makeshift Power Source > --- PROPULSION (2) --- Light Treads Spiked Treads > --- UTILITY (2) ------ Large Storage Unit Medium Armor Plating > --- WEAPON (2) ------- Barrage Gun Improved Light Cannon > --- INVENTORY (15) --- Aluminum Leg Compact Wheel High-capacity Storage Unit Subdweller Optics Medium Armor Plating Medium Armor Plating Medium Armor Plating Light Cannon Improved Light Cannon Improved Light Cannon Improved Light Cannon Mini Grenade Launcher Mini Grenade Launcher Multitool Makeshift Sword Peak State ------------ > --- POWER ------------ Makeshift Power Source > --- PROPULSION ------- Light Treads Spiked Treads > --- UTILITY ---------- Large Storage Unit Medium Armor Plating > --- WEAPON ----------- Barrage Gun Improved Light Cannon > --- INVENTORY -------- Aluminum Leg Compact Wheel High-capacity Storage Unit Subdweller Optics Medium Armor Plating Medium Armor Plating Medium Armor Plating Light Cannon Improved Light Cannon Improved Light Cannon Improved Light Cannon Mini Grenade Launcher Mini Grenade Launcher Multitool Makeshift Sword [Rating: 17] Favorites ----------- Power Makeshift Power Source Engine Makeshift Power Source Propulsion Light Treads Treads Light Treads Leg Aluminum Leg Utility Large Storage Unit Storage Large Storage Unit Protection Medium Armor Plating Weapon Assault Rifle Ballistic Gun Assault Rifle Ballistic Cannon Light Cannon Build | -11 -10 -10 ------- Run | Yrd Mat Sub Slots Evolved . | . . . Power . | . . . Propulsion . | . . . Utility . | . . . Weapon . | . . . Parts Attached 15 | 4 7 4 Power 1 | . . 1 Engine 1 | . . 1 Core . | . . . Reactor . | . . . Propulsion 5 | 2 2 1 Treads 4 | 2 1 1 Leg 1 | . 1 . Wheel . | . . . Hover . | . . . Flight . | . . . Utility 2 | . 2 . Device . | . . . Storage 1 | . 1 . Processor . | . . . Hackware . | . . . Protection 1 | . 1 . Artifact . | . . . Weapon 7 | 2 3 2 Energy Gun . | . . . Energy Cannon . | . . . Ballistic Gun 5 | 2 2 1 Ballistic Cannon 2 | . 1 1 Launcher . | . . . Special Weapon . | . . . Impact Weapon . | . . . Slashing Weapon . | . . . Piercing Weapon . | . . . Special Melee Weapon . | . . . Unidentified Prototypes . | . . . Parts Lost 3 | . 3 . Power . | . . . Propulsion 2 | . 2 . Utility . | . . . Weapon 1 | . 1 . Highest Loss Streak 3 | . 3 . To Critical Strikes . | . . . Average Backups 10 | 1 8 13 Power . | . . . Propulsion 2 | 1 2 2 Utility 2 | . 2 4 Weapon 5 | . 4 7 Tool/Special . | . . . Unused Backups 18 | . 2 16 Power . | . . . Propulsion 2 | . . 2 Utility 5 | . . 5 Weapon 10 | . 2 8 Tool/Special 1 | . . 1 Average Slot Usage (%) 78 | . 73 90 Engine 1 | . . 4 Treads 19 | . 19 18 Leg 7 | . 7 9 Storage 11 | . 10 14 Protection 9 | . 7 14 Ballistic Gun 18 | . 20 14 Ballistic Cannon 8 | . 7 14 Peak Build Rating 17 | 4 9 17 Average Rating 8 | 3 6 11 On Entrance 4 | . 4 9 Naked Turns . | . . . Heaviest Build 38 | 3 32 38 Greatest Support 40 | 20 40 40 Greatest Overweight (x) 1 | . 1 1 Average Overweight (x) . | . . . Largest Inventory Capacity 15 | 5 15 15 Average Capacity 13 | 5 12 15 Most Carried 15 | 3 14 15 Average Carried 10 | 1 9 13 Final Capacity 15 | 5 15 15 Final Carried 15 | 3 13 15 Class Distribution -------------------- 100% | Mutant Dominant Class ---------------- Mutant | -10/Materials Mutant | -10/Subcaves Resources | -11 -10 -10 ----------- Run | Yrd Mat Sub Matter Collected 726 | 177 347 202 Remotely . | . . . Salvage Created 595 | . 511 84 Parts 34 | . 33 1 Haulers Intercepted 1 | . 1 . Recyclers Shooed . | . . . Parts Field Recycled . | . . . Retrieved Matter . | . . . Parts Self-Destructed . | . . . Prevented . | . . . Kills | -11 -10 -10 ------- Run | Yrd Mat Sub Combat Hostiles Destroyed 15 | . 12 3 Guns 12 | . 11 1 Cannons 3 | . 1 2 Classes Destroyed 5 | . 4 1 Worker 1 | . 1 . Hauler 1 | . 1 . Swarmer 3 | . 3 . Grunt 9 | . 9 . Subdweller 3 | . . 3 Best Kill Streak 4 | . 4 3 Combat Bots Only 3 | . 3 3 Max Kills in Single Turn 1 | . 1 1 Gunslinging . | . . . Exploded . | . . . Melee . | . . . Uniques/NPCs Destroyed . | . . . Combat | -11 -10 -10 -------- Run | Yrd Mat Sub Hostile Shots Fired 79 | . 63 16 Missed 15 | . 11 4 Hits 64 | . 52 12 Projectile 64 | . 52 12 AOE 4 | . . 4 Damage Taken 1005 | . 553 452 Core 260 | . 87 173 Absorbed by Shields . | . . . Core Remaining (%) 100 | 100 . . Volleys Fired 69 | . 52 17 Largest 2 | . 2 2 Hottest 61 | . 50 61 Shots Fired 138 | . 103 35 Gun 116 | . 98 18 Cannon 22 | . 5 17 Launcher . | . . . Special . | . . . Kinetic 138 | . 103 35 Thermal . | . . . Explosive . | . . . Electromagnetic . | . . . Robot Hit Streak 16 | . 16 10 Robot Miss Streak 4 | . 4 1 Penetration Max . | . . . Secondary Targets . | . . . Shots Hit Robots 97 | . 71 26 Core Hits 34 | . 27 7 Critical Kills . | . . . Critical Parts Destroyed . | . . . Critical Strikes . | . . . Melee Attacks . | . . . Impact . | . . . Slashing . | . . . Piercing . | . . . Sneak Attacks . | . . . Combat Hostiles . | . . . Follow-up Attacks . | . . . Damage Inflicted 1169 | . 805 364 Guns 857 | . 752 105 Cannons 312 | . 53 259 Explosions . | . . . Melee . | . . . Ramming . | . . . Kinetic 1169 | . 805 364 Thermal . | . . . Explosive . | . . . Electromagnetic . | . . . Impact . | . . . Slashing . | . . . Piercing . | . . . Highest Corruption 2 | . 2 2 Average Corruption 2 | . 2 2 Corruption Purged . | . . . Corruption Blocked . | . . . Effects 20 | . 13 7 Message Errors 5 | . 4 1 Matter Fused 6 | . 5 1 Heat Flow Errors 2 | . . 2 Energy Discharges 1 | . 1 . Data Loss (minor) 4 | . 3 1 Data Loss (major) 1 | . . 1 Misfires 1 | . . 1 Overload Shots . | . . . Overflow Damage . | . . . Projectiles . | . . . Explosions . | . . . Melee . | . . . Knockbacks 5 | . . 5 Impact . | . . . Kinetic 5 | . . 5 Secondary . | . . . Self-Inflicted Damage . | . . . Shots . | . . . Rammed . | . . . Targets Rammed . | . . . Kicked . | . . . Crushed . | . . . Highest Temperature 136 | . 4 136 Average Temperature 20 | . 1 69 Received Heat Transfer 303 | . 252 51 Siege Activations . | . . . Martial Activations . | . . . Shielding Activations . | . . . Robots Disrupted . | . . . Combat Hostiles . | . . . Robots Corrupted . | . . . Combat Hostiles . | . . . Parts Fried . | . . . Impact Corruptions . | . . . Robots Melted . | . . . Combat Hostiles . | . . . Parts Melted . | . . . Heat Transferred . | . . . Parts Sabotaged . | . . . Parts Stolen . | . . . Parts Stripped . | . . . Power Chain Reactions . | . . . Alert | -11 -10 -10 ------- Run | Yrd Mat Sub Maximum Alert Level . | . . . Low Security (%) 100 | 100 100 . Level 1 . | . . . Level 2 . | . . . Level 3 . | . . . Level 4 . | . . . Level 5 . | . . . High Security . | . . . Max Security . | . . . Peak Influence 100 | . 100 . Initial . | . . . Average 22 | . 22 . Influence Increases 362 | . 362 . Destroy 0b10 Robot/C 240 | . 240 . Destroy 0b10 Robot/NC 10 | . 10 . Destroy Leader 52 | . 52 . Successful Hack 30 | . 30 . Lose Combat Pursuer 30 | . 30 . Influence Decreases 362 | . 362 . Time Decay 332 | . 332 . Lost Part 30 | . 30 . Squads Dispatched 2 | . 2 . Investigation 1 | . 1 . Extermination . | . . . Reinforcement 1 | . 1 . Assault . | . . . Garrison . | . . . Intercept . | . . . Searches Triggered . | . . . Construction Impeded . | . . . Haulers Reinforced . | . . . Active Scanning Responses . | . . . Cargo Convoy Interrupts . | . . . Stealth | -11 -10 -10 --------- Run | Yrd Mat Sub Distress Signals 3 | . 3 . Communications Jammed . | . . . Distress Signals . | . . . Times Spotted 30 | . 26 4 Peak Tracking Total 5 | . 5 1 Tactical Retreats 2 | . 2 . Traps | -11 -10 -10 ------- Run | Yrd Mat Sub Traps Triggered 3 | . 2 1 Indirectly . | . . . Trap Hack Attempts . | . . . Triggered . | . . . Disarmed . | . . . Reprogrammed . | . . . Reused . | . . . Traps Extracted . | . . . Installed . | . . . Triggered . | . . . Machines | -11 -10 -10 ---------- Run | Yrd Mat Sub Machines Disabled . | . . . Max in Single Turn . | . . . Machines Repaired . | . . . Machines Dismantled . | . . . Machines Sabotaged . | . . . Overloaded Fab Kills . | . . . Hacking | -11 -10 -10 --------- Run | Yrd Mat Sub Machines Accessed 7 | . 7 . Terminals 7 | . 7 . Fabricators . | . . . Repair Stations . | . . . Recycling Units . | . . . Scanalyzers . | . . . Garrison Access . | . . . Total Hacks 24 | . 24 . Successful 12 | . 12 . Failed 12 | . 12 . Catastrophic 3 | . 3 . Database Lockouts . | . . . Manual 17 | . 17 . Terminals 24 | . 24 . Fabricators . | . . . Repair Stations . | . . . Recycling Units . | . . . Scanalyzers . | . . . Garrison Access . | . . . Terminal Hacks 5 | . 5 . Robot Analysis 1 | . 1 . Prototype ID Bank 2 | . 2 . Terminal Index 1 | . 1 . Hauler Manifests 1 | . 1 . Fabricator Hacks . | . . . Repair Station Hacks . | . . . Recycling Unit Hacks . | . . . Scanalyzer . | . . . Garrison Access Hacks . | . . . Unauthorized Hacks 7 | . 7 . Terminals 7 | . 7 . Botnet 2 | . 2 . Skim 5 | . 5 . Fabricators . | . . . Repair Stations . | . . . Recycling Units . | . . . Scanalyzers . | . . . Garrison Access . | . . . Data Cores Recovered . | . . . Used . | . . . Hacking Detections 7 | . 7 . Full Trace Events . | . . . Feedback Events . | . . . Feedback Blocked . | . . . Robot Schematics Acquired . | . . . Robots Built . | . . . Authchips . | . . . Time . | . . . Total Robot Build Rating . | . . . Part Schematics Acquired . | . . . Parts Built . | . . . Authchips . | . . . Time . | . . . Total Part Build Rating . | . . . Parts Repaired . | . . . Time . | . . . Parts Recycled . | . . . Recycled Matter . | . . . Retrieved Matter . | . . . Retrieved Components . | . . . Parts Scanalyzed . | . . . Part Schematics Acquired . | . . . Parts Damaged . | . . . Bothacking | -11 -10 -10 ------------ Run | Yrd Mat Sub Used RIF Installer . | . . . Robots Hacked . | . . . Non-combat . | . . . Combat . | . . . Robot Hacks Applied . | . . . Relay Couplers Released . | . . . Fabnet Peak Effective % . | . . . Robots Rewired . | . . . Allies Hacked . | . . . Hacks Repelled . | . . . Allies | -11 -10 -10 -------- Run | Yrd Mat Sub Total Allies . | . . . Largest Group . | . . . Highest-Rated Group . | . . . Highest-Rated Ally . | . . . Total Orders . | . . . Ally Attacks . | . . . Total Damage . | . . . Kills . | . . . Allies Corrupted . | . . . Allies Melted . | . . . Intel | -11 -10 -10 ------- Run | Yrd Mat Sub Active Infowar (turns) . | . . . Robot Analysis Total 1 | . 1 . Derelict Logs Recovered 1 | . . 1 Drone Launches . | . . . Drone Recoveries . | . . . Exploration | -11 -10 -10 ------------- Run | Yrd Mat Sub Turns Passed 2245 | 38 1618 589 Spaces Moved 1058 | 29 772 257 Core 318 | 16 302 . Treads 740 | 13 470 257 Legs . | . . . Wheels . | . . . Hover . | . . . Flight . | . . . Fastest Speed 50 | 50 50 160 Average Speed 162 | 99 151 204 Slowest Speed 240 | 160 240 240 Overloaded Moves . | . . . Propulsion Burnouts . | . . . Robots Hopped . | . . . Potential Cave-ins . | . . . Cave-ins Triggered . | . . . Exploration Rate (%) 35 | 4 92 11 Regions Visited 2 Branch Regions 1 Pre-discovered Areas 1 | . 1 . Known Exits Taken 1 | . 1 . Unknown Exits Taken 1 | 1 . . Scrap Searched 6 | . . 6 Spaces Dug . | . . . Terrain Destroyed . | . . . Melee . | . . . Projectile . | . . . AOE . | . . . Terrain Rammed . | . . . Walls Destroyed . | . . . Machines Disabled . | . . . Actions | -11 -10 -10 --------- Run | Yrd Mat Sub Total 1453 | 35 1131 287 Wait 276 | . 275 1 Move 1056 | 28 771 257 Hop . | . . . Pick Up 25 | 3 18 4 Fast Attach 9 | 4 2 3 Attach 4 | . 4 . Detach 1 | . 1 . Swap 4 | . 3 1 Drop 9 | . 5 4 Fire 69 | . 52 17 Melee . | . . . Ram . | . . . Kick . | . . . Crush . | . . . Escape Stasis . | . . . Rewire . | . . . Trap . | . . . Miscellaneous . | . . . Route ------- -11/Scrapyard -10/Materials (discovered 5 exits: *Mat x3 / [*Min] / *Sub) -10/Subcaves (discovered 2 exits: Mat x2) History --------- Turn | Location | Event 9 | -11/Scrapyard | Discovered new exit (range 16) 39 | -11/Scrapyard | Entered Materials 306 | -10/Materials | Build established: Mutant 425 | -10/Materials | Discovered new exit (range 7) 737 | -10/Materials | Lost 3 parts (2n1w) 846 | -10/Materials | Discovered new exit (range 5) 1143 | -10/Materials | Discovered new exit (range 10) 1153 | -10/Materials | Identified exit to Materials 1153 | -10/Materials | Identified exit to Subcaves 1153 | -10/Materials | Learned location of 1 exit from Materials 1203 | -10/Materials | Learned location of 1 exit from Storage 1241 | -10/Materials | Loaded intel: 11 trap records 1269 | -10/Materials | Learned location of 2 exits from Materials 1286 | -10/Materials | Learned location of Recycling (-7) 1294 | -10/Materials | Learned 4 Recycling zone layouts 1361 | -10/Materials | Learned Storage trap positions 1657 | -10/Materials | Entered Subcaves 1658 | -10/Subcaves | Approached by a straggling Scientist 1658 | -10/Subcaves | Identified exit to Materials 1848 | -10/Subcaves | Core integrity fell below 50% 1850 | -10/Subcaves | Core integrity fell below 20% 1967 | -10/Subcaves | Disturbed a concealed Subdweller 2246 | -10/Subcaves | Destroyed by Piercing Trap Last Messages --------------- here" 02065_ Dropped Assault Rifle. 02066_ Acquired Barrage Gun. 02067_ Acquired 10 matter. 02091_ Subatomizers dissect the Disposable Heat Sink. GD-O3I(c): "I think it's somewhere northeast of here" 02118_ System corrupted: Heat flow error (+166). 02119_ Subatomizers dissect the Disposable Heat Sink. GD-O3I(c): "I think it's somewhere northeast of here" 02181_ System corrupted: Substantial component data lost. GD-O3I(c): "I think it's somewhere northeast of here" 02246_ Triggered Piercing Trap. 02246_ Spikes shoot up from the floor. 02246_ Critical hit (Impale). Map ----- +----------------------------------------------------+ | ??????????????????????????????????????????????? | | ??????????????????????????????????????????????? | | ?????????????????